[Event "Mongolian Championship Women 2022"]
[Site "Chingis Khentii"]
[Date "2022.05.15"]
[Round "3.3"]
[White "Khulan, Enkhsaikhan"]
[Black "Amin-Erdene, Bayanmunkh"]
[Result "1-0"]
[ECO "E60"]
[WhiteElo "2111"]
[BlackElo "1425"]
[Annotator "TA"]
[PlyCount "119"]
[EventDate "2022.05.12"]
[EventType "tourn"]
[EventCountry "MGL"]
[SourceTitle "playchess.com"]
[Source "ChessBase"]
[SourceQuality "1"]
[TimeControl "40/5400+30:1800+30"]

{[%evp 22,119,61,54,95,81,98,78,91,83,87,68,111,84,94,79,125,128,223,209,358,357,357,349,350,356,314,34,34,35,35,28,31,0,49,49,51,32,75,77,77,76,67,55,116,110,118,131,156,131,302,302,302,302,523,466,478,466,587,597,595,587,580,545,584,0,570,558,418,391,568,565,529,546,505,356,600,586,679,679,629,604,662,650,605,465,1386,1289,12845,1353,1244,1193,1085,1089,1904,951,12839,12837,12841,6528]} 1. c4 {[%emt 0:01:02]} Nf6 {[%emt 0:00:15]} 2. Nc3 {[%emt 0:00:15]} g6 {[%emt 0:00:05]} 3. Nf3 {[%emt 0:00:08]} Bg7 {[%emt 0:00:06]} 4. g3 {[%emt 0:00:16]} O-O {[%emt 0:00:06]} 5. Bg2 {[%emt 0:00:07]} d6 {[%emt 0:00:06]} 6. O-O {[%emt 0:00:12]} Nc6 {[%emt 0:00:10]} 7. b3 {[%emt 0:01:42]} e5 {[%emt 0:01:00]} 8. Bb2 {[%emt 0:00:34]} Re8 {[%emt 0:02:56]} 9. d4 {[%emt 0:02:54]} Nd7 {[%emt 0:19:56]} 10. dxe5 {[%emt 0:04:45]} Ndxe5 {[%emt 0:01:16]} 11. Nxe5 {[%emt 0:00:46]} Nxe5 {[%emt 0:02:38]} 12. Qd2 {[%emt 0:01:11]} Rb8 {[%emt 0:04:39] E60: King's Indian: Unusual lines and Fianchetto Variation without Nc3.} 13. Rad1 {[%emt 0:02:13]} Bd7 {[%emt 0:06:07]} 14. Nd5 {[%emt 0:01:39]} Bc6 {[%emt 0:03:59] [#] White is better.} 15. Bd4 $146 {[%emt 0:01:53]} ({Predecessor:} 15. h3 Bxd5 16. cxd5 Nd7 17. Bxg7 Kxg7 18. Rc1 Nc5 19. b4 Na6 20. Rc4 {1-0 (69) Iskusnyh,S (2473)-Plotnikov,P (2297) Chess.com INT 2021}) 15... a6 {[%emt 0:03:16]} 16. Qc3 {[%emt 0:00:58] Threatens to win with f4.} (16. e4 {keeps more tension.} Nd7 17. Bxg7 Kxg7 18. f4) 16... Bf8 {[%emt 0:09:29]} 17. e4 {[%emt 0:12:34]} Bxd5 {[%emt 0:05:43]} 18. cxd5 {[%emt 1:06:21]} Rc8 {[%emt 0:03:46]} ({Black should play} 18... c6) 19. f4 $16 {[%emt 0:00:00][%cal Bf2f4,Bf4e5][%mdl 32]} Nd7 {[%emt 0:00:23]} (19... c5 $16) 20. e5 $18 dxe5 (20... c5 $142 21. dxc6 bxc6 22. exd6 (22. Bxc6 Nb8 $17) 22... Bxd6) 21. fxe5 {[%emt 0:00:00][%cal Oe5e6] Strongly threatening e6!} c5 {[%emt 0:11:08]} 22. dxc6 {[%emt 0:00:00]} bxc6 {[%emt 0:00:30]} 23. Qc4 {[%emt 0:00:00]} (23. Bxc6 Nxe5 24. Bxe5 Qb6+ 25. Bd4 Qxc6 26. Qxc6 Rxc6 $11) 23... Qe7 {[%emt 0:01:40]} 24. Rf2 $2 {[%emt 0:03:00]} (24. Qxa6 Nxe5 25. Kh1 Bg7 $14) ({Only move:} 24. Bh3 $1 $18 {[%cal Of1f7] Hoping for Rxf7!} Nc5 25. Bxc8 Rxc8 26. Bb2) 24... Nxe5 $14 {[%emt 0:05:41]} 25. Bxe5 {[%emt 0:00:00]} ({Much worse is} 25. Qxa6 Rcd8 26. Rff1 (26. Bxc6 $2 Rd6 $19) 26... Rxd4 27. Rxd4 Qc5 $15) 25... Qxe5 {[%emt 0:00:02]} 26. Qxf7+ {[%emt 0:00:00]} Kh8 {[%emt 0:00:02]} 27. Qf6+ {[%emt 0:00:00]} (27. Rc2 {is interesting.} Bb4 28. Kh1 a5 29. Rxc6 Rcd8 30. Rcc1) 27... Bg7 {[%emt 0:00:26]} (27... Qxf6 $11 {might be stronger.} 28. Rxf6 Re2) 28. Qxe5 {[%emt 0:00:00]} Bxe5 {[%emt 0:06:23]} 29. Rf7 {[%emt 0:00:00]} Kg8 {[%emt 0:00:57]} 30. Rdd7 {[%emt 0:00:00] White is more active.} Bd4+ {[%emt 0:00:16]} 31. Kh1 $1 {[%emt 0:00:00] And now Bf1 would win.} Re1+ {[%emt 0:00:25]} 32. Bf1 {[%emt 0:00:00]} Rd8 {[%emt 0:05:42] [#] Black is now going downhill.} 33. Kg2 $1 $16 {[%emt 0:00:00]} Rxd7 {[%emt 0:00:30]} 34. Rxd7 {[%emt 0:00:00][%mdl 4096] Endgame KRB-KRB} c5 {[%emt 0:00:26]} 35. Bxa6 {[%emt 0:00:00]} Rb1 $2 {[%emt 0:03:01]} (35... Kf8 $16 36. Rxh7 Rb1) 36. Bc4+ $18 {[%emt 0:00:00]} Kf8 {[%emt 0:00:18]} 37. a4 {[%emt 0:00:00]} ({Less strong is} 37. Rxh7 Rb2+ 38. Kf3 Rxa2 $16) 37... Rb2+ $2 {[%emt 0:00:13]} (37... Bc3 {might work better.} 38. Rxh7 Ke8) 38. Kf3 {[%emt 0:00:00]} Ra2 {[%emt 0:02:48]} 39. Rxh7 {[%emt 0:00:00]} Bg1 {[%emt 0:01:55]} 40. h4 {[%emt 0:00:00]} Bd4 {[%emt 0:00:00]} 41. Rf7+ {[%emt 0:00:00]} Ke8 {[%emt 0:01:48]} 42. Ke4 {[%emt 0:00:00]} Bf2 {[%emt 0:03:40]} 43. Kf3 {[%emt 0:00:00]} (43. Rg7 $18) 43... Be1 $2 {[%emt 0:03:37][%mdl 8192]} (43... Bd4 $11 44. Ra7 Bc3) 44. Kg4 {[%emt 0:00:00]} Rg2 {[%emt 0:05:24]} 45. Rf3 {[%emt 0:00:00] Re3+ is the strong threat.} Kd7 {[%emt 0:04:26]} (45... Rg1 $142 46. Bf7+ Ke7 47. Bxg6 Bd2) 46. Kh3 {[%emt 0:00:00]} Rf2 {[%emt 0:04:42]} 47. Rd3+ {[%emt 0:00:00]} Kc7 {[%emt 0:04:01]} 48. Rd5 {[%emt 0:00:00]} Kc6 $2 {[%emt 0:00:30]} (48... Rf6 49. Rxc5+ Rc6) 49. Re5 {[%emt 0:00:00] White is clearly winning.} Bc3 {[%emt 0:01:44]} 50. Re6+ {[%emt 0:00:00]} Kd7 {[%emt 0:00:41]} 51. Rxg6 {[%emt 0:00:00]} Rf8 {[%emt 0:00:35]} 52. h5 {[%emt 0:00:00][%cal Bh4h5,Bh5h6,Bh6h7][%mdl 32]} Bd2 {[%emt 0:01:41]} 53. Kg4 {[%emt 0:00:00]} Ke7 {[%emt 0:00:39]} (53... Rh8 $142 54. Kh4 Rh6 55. Rg7+ Kc8) 54. h6 {[%emt 0:00:00]} Rf6 {[%emt 0:01:12]} 55. Rg7+ {[%emt 0:00:00]} Kd6 {[%emt 0:00:21]} 56. h7 {[%emt 0:00:00]} Rh6 {[%emt 0:00:18]} 57. Kf5 {[%emt 0:00:00]} Rh5+ {[%emt 0:00:48]} 58. Kg6 {[%emt 0:00:00]} Rh6+ {[%emt 0:00:18] [#]} 59. Kf7 $1 {[%emt 0:00:00] Rg6+ would kill now.} Bc3 {[%emt 0:04:10]} 60. Rg6+ {[%emt 0:00:00] Weighted Error Value: White=0.27 (precise) /Black=0.68} 1-0

[Event "Mongolian Championship Women 2022"]
[Site "Chingis Khentii"]
[Date "2022.05.15"]
[Round "3.4"]
[White "Munguntuul, Batkhuyag"]
[Black "Mungunzul, Bat-Erdene"]
[Result "1/2-1/2"]
[ECO "C43"]
[WhiteElo "2443"]
[BlackElo "2091"]
[Annotator "TA"]
[PlyCount "68"]
[EventDate "2022.05.12"]
[EventType "tourn"]
[EventCountry "MGL"]
[SourceTitle "playchess.com"]
[Source "ChessBase"]
[SourceQuality "1"]
[TimeControl "40/5400+30:1800+30"]

{[%evp 17,68,0,9,6,4,13,6,24,14,0,0,-26,8,19,12,25,8,0,0,0,0,-34,0,-20,-8,-10,-21,-17,14,8,6,9,8,0,0,0,0,0,0,0,0,0,0,0,0,0,5,0,0,0,0,0,656]} 1. e4 {[%emt 0:00:01]} e5 {[%emt 0:00:17]} 2. Nf3 {[%emt 0:00:02]} Nf6 {[%emt 0:00:29]} 3. d4 {[%emt 0:02:08]} Nxe4 {[%emt 0:00:43]} 4. Bd3 {[%emt 0:00:04]} d5 {[%emt 0:00:16]} 5. Nxe5 {[%emt 0:00:04]} Nd7 {[%emt 0:00:29]} 6. Nxd7 {[%emt 0:04:33]} Bxd7 {[%emt 0:00:22]} 7. O-O {[%emt 0:00:19]} Bd6 {[%emt 0:01:10]} 8. Nc3 {[%emt 0:00:21]} Nxc3 {[%emt 0:01:04]} 9. bxc3 {[%emt 0:00:03]} O-O {[%emt 0:00:10]} 10. Qh5 {[%emt 0:00:44][%csl Gd3,LRd5,LRh7][%cal Rh5h7] [#] C43: Petroff Defence: 3 d4.} f5 $1 {[%emt 0:00:22]} 11. Re1 {[%emt 0:04:20]} c6 {[%emt 0:08:56]} 12. Bg5 {[%emt 0:02:55]} Qc7 {[%emt 0:02:38]} 13. Re3 $1 {[%emt 0:11:48][%mdl 4] is more profitable than 13.c4 at the moment.} Rf7 {[%emt 0:18:29]} 14. Rae1 {[%emt 0:12:07] [#]} Bf8 $146 {[%emt 0:06:49]} ({Predecessor:} 14... Raf8 15. Rh3 g6 16. Qh4 Re8 17. Rxe8+ Bxe8 18. Re3 Bd7 19. Bd8 Qc8 20. c4 Be6 {1-0 (31) Khubukshanov,E (2368)-Mijailovic,Z (2342) Belgrade 2021}) 15. c4 {[%emt 0:17:40]} ({Much worse is} 15. Rh3 g6 16. Qd1 Qa5 $15) 15... Qa5 {[%emt 0:10:54]} 16. cxd5 {[%emt 0:04:22]} cxd5 {[%emt 0:01:10]} 17. Qf3 {[%emt 0:00:07]} Bb4 {[%emt 0:12:28]} 18. Rd1 {[%emt 0:01:01][%cal Oa2a3]} Qxa2 {[%emt 0:11:43]} 19. Re5 {[%emt 0:02:37]} h6 {[%emt 0:00:26]} 20. Bc1 {[%emt 0:05:26] The position is equal.} Rc8 {[%emt 0:01:09]} 21. Qxd5 {[%emt 0:04:45]} (21. Bd2 {is interesting.} Bxd2 22. Rxd2 Qb2 23. Be2) 21... Qxd5 {[%emt 0:01:27]} 22. Rxd5 {[%emt 0:00:01]} Ba4 {[%emt 0:05:55]} 23. Bd2 {[%emt 0:07:02]} a5 {[%emt 0:00:11][%cal Ba7a5,Ba5b4][%mdl 32]} 24. Bxb4 {[%emt 0:07:05]} ({Don't go for} 24. Bxf5 $2 {[#]} Rxf5 $1 {[%mdl 512]} 25. Rxf5 Bxc2 26. Bxb4 axb4 $19) 24... axb4 {[%emt 0:00:02]} 25. Rc5 {[%emt 0:00:31]} Rxc5 {[%emt 0:04:45]} 26. dxc5 $11 {[%emt 0:00:08][%mdl 4096] Endgame Hoping for Bc4. KRB-KRB} Rc7 {[%emt 0:00:10]} 27. Ra1 {[%emt 0:02:12]} Bd7 {[%emt 0:00:41]} 28. Rb1 {[%emt 0:00:26]} Rxc5 {[%emt 0:00:31]} 29. Rxb4 {[%emt 0:00:03]} Bc6 {[%emt 0:00:30]} 30. f3 {[%emt 0:03:27]} Kf7 {[%emt 0:00:38]} 31. Kf2 {[%emt 0:00:04]} g5 {[%emt 0:01:55]} 32. h4 {[%emt 0:00:59]} Kf6 {[%emt 0:00:13]} 33. g3 {[%emt 0:03:51]} Rd5 {[%emt 0:01:39]} 34. hxg5+ {[%emt 0:04:23]} Ke5 $2 {[%emt 0:08:49][%mdl 40960] Weighted Error Value: White=0.05 (flawless) /Black=0.05 (flawless) . An unexpected result.} (34... hxg5 $11 35. f4 Rd8) 1/2-1/2

[Event "Mongolian Championship Women 2022"]
[Site "Chingis Khentii"]
[Date "2022.05.15"]
[Round "3.5"]
[White "Bayarmaa, Bayarjargal"]
[Black "Anu, Bayar"]
[Result "1-0"]
[ECO "D20"]
[WhiteElo "2124"]
[BlackElo "2102"]
[Annotator "TA"]
[PlyCount "69"]
[EventDate "2022.05.12"]
[EventType "tourn"]
[EventCountry "MGL"]
[SourceTitle "playchess.com"]
[Source "ChessBase"]
[SourceQuality "1"]
[TimeControl "40/5400+30:1800+30"]

{[%evp 9,68,-53,13,0,27,25,47,28,35,19,266,269,337,339,303,320,660,646,795,780,1120,1114,1568,1572,1698,1672,1633,1500,1495,1490,1722,1661,2103,2118,2122,2038,6104,5991,5313,4484,12850,7009,29982,29983,29986,29987,29991,29992,29993,29994,29994,29995,29995,29996,29996,29997,29997,29998,29998,29999,29999]} 1. d4 {[%emt 0:03:06]} d5 {[%emt 0:00:29]} 2. c4 {[%emt 0:00:14]} dxc4 {[%emt 0:00:01]} 3. Nc3 {[%emt 0:00:59]} e5 {[%emt 0:01:35]} 4. d5 {[%emt 0:01:18]} Nf6 {[%emt 0:06:23]} 5. e4 {[%emt 0:03:47]} a6 {[%emt 0:03:28]} ({Black should try} 5... b5 $15) 6. Bxc4 $11 {[%emt 0:03:36] D20: Queen's Gambit Accepted: 3 e3 and 3 e4.} Bc5 {[%emt 0:01:35]} (6... b5 $5 {[%cal Rb5c4]} 7. Bd3 Nbd7 $11) 7. Nf3 {[%emt 0:02:59]} Bg4 {[%emt 0:06:14] [#]} 8. Be2 $146 {[%emt 0:04:08] White is slightly better.} ({Predecessor:} 8. Qd3 Qd6 9. h3 Bh5 10. O-O O-O 11. Ne2 Bg6 12. Ng3 Nh5 13. Nxh5 Bxh5 14. a3 {1-0 (53) Botlhole,K (1762)-Jorge,R (1693) Tromsoe 2014}) 8... Nbd7 {[%emt 0:03:43]} 9. Nh4 {[%emt 0:03:55]} Nxe4 $2 {[%emt 0:10:40]} 10. Nxe4 $18 {[%emt 0:00:49][%cal Bc3e4,Be4g5,Bg5e6][%mdl 32]} Bb4+ {[%emt 0:31:03] [#]} 11. Kf1 $1 {[%emt 0:00:34]} Bxe2+ {[%emt 0:05:14]} 12. Qxe2 {[%emt 0:00:08]} Qxh4 {[%emt 0:00:02]} (12... g6 13. Nf3 h6) 13. Bg5 {[%emt 0:00:15]} Qxg5 {[%emt 0:00:29]} 14. Nxg5 {[%emt 0:00:09]} O-O {[%emt 0:00:08]} 15. Qe4 {[%emt 0:00:14][%csl Gg5,LRb4,LRh7][%cal Re4h7] [#]} f5 {[%emt 0:00:10]} 16. Qxb4 {[%emt 0:00:12]} h6 {[%emt 0:00:05]} 17. Ne6 {[%emt 0:00:12]} Rf7 {[%emt 0:00:09]} 18. Nxc7 {[%emt 0:00:38]} Rb8 {[%emt 0:00:05]} 19. d6 {[%emt 0:00:15]} e4 {[%emt 0:00:42]} 20. Rc1 {[%emt 0:00:14]} Ne5 {[%emt 0:00:11]} 21. Qb3 {[%emt 0:01:08]} Nd3 {[%emt 0:00:19]} 22. Rc3 {[%emt 0:00:18]} g5 {[%emt 0:01:21]} 23. Rxd3 {[%emt 0:00:19]} exd3 {[%emt 0:00:06]} 24. Qxd3 {[%emt 0:00:05] h4 is the strong threat.} Rd8 {[%emt 0:00:16]} 25. Qd5 {[%emt 0:00:30] Ne6 would kill now.} Rdd7 {[%emt 0:00:16]} 26. g3 {[%emt 0:00:22] White mates.} Kh7 {[%emt 0:00:09]} 27. Kg2 {[%emt 0:00:19]} Rf6 {[%emt 0:00:14]} 28. Re1 {[%emt 0:00:21]} Rdxd6 {[%emt 0:00:15]} 29. Re7+ {[%emt 0:00:36]} Kg6 {[%emt 0:00:03]} 30. Qg8+ {[%emt 0:00:19]} Kh5 {[%emt 0:00:02]} 31. Qe8+ {[%emt 0:00:20]} Rg6 {[%emt 0:00:05]} 32. Re6 {[%emt 0:00:23]} Rdxe6 {[%emt 0:00:09]} 33. Nxe6 {[%emt 0:00:07]} f4 {[%emt 0:00:18]} 34. Ng7+ {[%emt 0:00:10]} Kg4 {[%emt 0:00:10]} 35. f3# {[%emt 0:00:08] Black did not feel at home in the position after the opening.  Weighted Error Value: White=0.05 (flawless) /Black=1.19} 1-0

[Event "Mongolian Championship Women 2022"]
[Site "Chingis Khentii"]
[Date "2022.05.15"]
[Round "3.6"]
[White "Nomindalai Tumurbaatar"]
[Black "Munkhzul, Davaakhuu"]
[Result "1/2-1/2"]
[ECO "A11"]
[WhiteElo "2111"]
[BlackElo "1991"]
[Annotator "TA"]
[PlyCount "147"]
[EventDate "2022.05.12"]
[EventType "tourn"]
[EventCountry "MGL"]
[SourceTitle "playchess.com"]
[Source "ChessBase"]
[SourceQuality "1"]
[TimeControl "40/5400+30:1800+30"]

{[%evp 18,147,31,29,33,24,48,43,79,85,85,34,54,54,55,48,60,61,52,70,77,24,24,23,34,14,28,0,0,0,0,-15,0,0,4,3,25,30,150,172,167,174,185,181,328,304,287,268,317,322,324,305,307,304,313,295,548,0,365,306,315,22,22,22,22,9,8,27,12,0,0,0,0,0,0,0,0,0,0,0,0,0,38,38,38,29,40,39,33,0,0,0,8,8,14,1,6,7,8,8,8,0,0,0,8,8,8,8,8,8,8,8,22,8,9,8,14,0,0,0,0,0,0,0,0,0,0,0,0,0,0,0]} 1. Nf3 {[%emt 0:00:42]} Nf6 {[%emt 0:00:16]} 2. g3 {[%emt 0:00:36]} d5 {[%emt 0:00:12]} 3. Bg2 {[%emt 0:00:28]} Bf5 {[%emt 0:00:29]} 4. c4 {[%emt 0:00:46]} c6 {[%emt 0:00:13]} 5. cxd5 {[%emt 0:00:42]} cxd5 {[%emt 0:02:21]} 6. Qb3 {[%emt 0:00:40]} Qc8 {[%emt 0:10:11]} 7. Nc3 {[%emt 0:00:25]} e6 {[%emt 0:01:13]} 8. d3 {[%emt 0:02:15]} Nc6 {[%emt 0:01:51]} 9. O-O {[%emt 0:04:48]} Be7 {[%emt 0:02:26]} 10. Bf4 {[%emt 0:05:31]} O-O {[%emt 0:05:57] A11: English Opening: 1...c6.} 11. Rac1 {[%emt 0:00:30]} Qd7 {[%emt 0:04:41]} 12. e4 {[%emt 0:11:05]} Bg6 {[%emt 0:16:57] White is slightly better.} 13. exd5 {[%emt 0:13:14] White is more active.} exd5 {[%emt 0:03:44] [#]} 14. Ne2 $146 {[%emt 0:15:11]} ({White should play} 14. d4 $16) ({Predecessor:} 14. Ne5 Nxe5 15. Bxe5 Bxd3 16. Nxd5 Nxd5 17. Qxd3 Rad8 18. Qb3 Bf6 19. Bxf6 Nxf6 20. Rfd1 {1-0 (54) Shoker,S (2489)-Siva,M (2400) Doha 2015}) 14... Rac8 {[%emt 0:16:38]} 15. Ne5 {[%emt 0:03:56]} Nxe5 {[%emt 0:16:27]} 16. Bxe5 {[%emt 0:00:07]} Rc6 {[%emt 0:03:04]} 17. Nf4 {[%emt 0:12:02][%cal Rf4d5]} Rb6 {[%emt 0:03:00]} 18. Qc3 {[%emt 0:06:24]} Bf5 {[%emt 0:00:52]} 19. Qd2 {[%emt 0:04:35]} (19. Qd4 $16) 19... Bb4 $11 {[%emt 0:04:52]} 20. Qc2 {[%emt 0:01:35]} Rc6 {[%emt 0:00:45]} 21. Qb3 {[%emt 0:03:13]} (21. Qd1 $5 {[%cal Re5f6]}) 21... Bd2 {[%emt 0:00:10]} 22. Rcd1 {[%emt 0:07:56]} Bxf4 {[%emt 0:00:09]} 23. Bxf4 {[%emt 0:00:01]} Rb6 {[%emt 0:00:48]} 24. Qc2 {[%emt 0:01:05]} Rc8 {[%emt 0:00:10]} 25. Qd2 {[%emt 0:00:35]} Rbc6 {[%emt 0:01:05]} 26. Be5 {[%emt 0:01:11]} Ng4 {[%emt 0:00:03]} 27. Bd4 {[%emt 0:00:13]} Rh6 {[%emt 0:01:52]} (27... Nf6 $11 {remains equal.}) 28. h3 $16 {[%emt 0:01:01]} Nf6 {[%emt 0:00:04]} 29. g4 {[%emt 0:01:01]} (29. Bxa7 Bxh3 30. Rc1 Bxg2 31. Kxg2 Ra8 $17) 29... Bxg4 {[%emt 0:00:33]} 30. hxg4 $40 {[%emt 0:00:52][%mdl 128] White wants a kill.} Nxg4 {[%emt 0:00:16]} (30... Qxg4 $142 31. Be5 (31. Rc1 Rxc1 32. Rxc1 Rg6 $16) 31... Rg6) 31. Qf4 {[%emt 0:02:31]} Rg6 {[%emt 0:00:47]} 32. Rc1 {[%emt 0:00:07] Rxc8+ is the strong threat.} (32. Bxa7 Nf6 33. Qf3 Ra8 $18) 32... Re8 {[%emt 0:01:37]} 33. Rfe1 {[%emt 0:00:14]} Rxe1+ {[%emt 0:00:48]} 34. Rxe1 {[%emt 0:00:01] [#] Intending Qb8+ and mate.} h5 {[%emt 0:00:14]} 35. Qb8+ {[%emt 0:00:33]} Kh7 {[%emt 0:00:09]} 36. Re8 {[%emt 0:00:17][%csl Gb8][%cal Re8h8]} (36. Bxa7 Qc6 37. Qg3 Qf6 $18) 36... Rc6 $2 {[%emt 0:00:58]} (36... Rg5 37. f3 (37. Rh8+ Kg6 $18) 37... Qa4) 37. Re1 $2 {[%emt 0:01:59]} (37. Bh3 $18) 37... Nh6 $2 {[%emt 0:00:34][%mdl 8192]} (37... Rg6 $1 $11 {and Black is okay.}) 38. Qf4 {[%emt 0:00:31]} ({Weaker is} 38. Qxa7 Rg6 39. Kf1 Qf5 $11) (38. Bxa7 h4 39. Qh2 b6 $18) 38... Rg6 {[%emt 0:00:35][%cal Bc6g6,Bg6g4,Bg4d4,Bd4d3][%mdl 32]} 39. Kf1 $2 {[%emt 0:00:34]} ({Don't play} 39. Bxa7 Qb5 40. Qe5 Re6 $18) (39. Qf3 $18) 39... Rg4 $1 $11 {[%emt 0:01:46]} 40. Qe5 {[%emt 0:00:00]} f6 {[%emt 0:00:00] [#]} 41. Qxh5 {[%emt 0:20:09]} Rxd4 {[%emt 0:01:29]} 42. Bh3 {[%emt 0:00:07]} f5 {[%emt 0:00:34]} 43. Qg5 {[%emt 0:01:03] Threatens to win with Re7.} Qf7 {[%emt 0:03:03]} 44. Re7 {[%emt 0:03:34]} Qg6 {[%emt 0:07:07]} 45. Qxg6+ {[%emt 0:00:40]} Kxg6 {[%emt 0:00:02]} 46. Rxb7 {[%emt 0:00:05]} Rxd3 {[%emt 0:00:13][%mdl 4096] Endgame KRB-KRN} 47. Bg2 {[%emt 0:00:03]} Ng4 {[%emt 0:02:28]} 48. Ke2 {[%emt 0:00:07] Prevents Rd2+.} Rd4 {[%emt 0:01:11]} 49. Rxa7 {[%emt 0:00:52]} Rc4 {[%emt 0:00:50]} 50. Bxd5 {[%emt 0:04:23]} Rc2+ {[%emt 0:00:09]} 51. Kd3 {[%emt 0:00:03]} Rxb2 {[%emt 0:00:44]} 52. f3 {[%emt 0:00:13]} Nf2+ {[%emt 0:02:23]} 53. Ke3 {[%emt 0:00:43]} Kf6 {[%emt 0:00:57] White must now prevent ...Ke5. The position is equal.} 54. Bb3 {[%emt 0:01:56]} g5 {[%emt 0:00:56]} 55. Ra6+ {[%emt 0:00:18]} Kg7 {[%emt 0:00:25]} 56. Be6 {[%emt 0:03:56]} f4+ {[%emt 0:05:12]} 57. Kd4 {[%emt 0:00:01]} Re2 {[%emt 0:00:19]} 58. Bf5 {[%emt 0:00:30]} Kf7 {[%emt 0:01:14]} 59. Bg6+ {[%emt 0:00:59]} Ke7 {[%emt 0:00:45]} 60. Bh5 {[%emt 0:00:47]} Nd1 {[%emt 0:03:14]} 61. a4 {[%emt 0:00:31]} Ne3 {[%emt 0:00:54]} 62. Ke5 {[%emt 0:00:31]} Nc4+ {[%emt 0:01:05]} 63. Kf5 {[%emt 0:00:19]} Re5+ {[%emt 0:00:21]} 64. Kg6 {[%emt 0:00:18]} Rc5 {[%emt 0:00:54]} 65. Ra7+ {[%emt 0:00:38]} Kd6 {[%emt 0:00:59]} 66. Kf6 {[%emt 0:00:19]} Nb6 {[%emt 0:01:50]} 67. Rg7 {[%emt 0:00:55]} Nxa4 {[%emt 0:00:51]} 68. Be8 {[%emt 0:00:13]} Nb6 {[%emt 0:00:57]} 69. Rxg5 {[%emt 0:00:35]} Rxg5 {[%emt 0:01:24]} 70. Kxg5 {[%emt 0:00:02]} Ke5 {[%emt 0:00:08]} 71. Bc6 {[%emt 0:00:17]} Nc4 {[%emt 0:00:21]} 72. Ba8 {[%emt 0:00:10]} Ne3 {[%emt 0:00:24]} 73. Bb7 {[%emt 0:00:07]} Ng2 {[%emt 0:00:19]} 74. Bc8 {[%emt 0:00:43] Blacks defense is rewarded with a draw.  Weighted Error Value: White=0.27 (precise) /Black=0.31} 1/2-1/2